Cogmind - Beta 13 *** ADVENTURER MODE // 2024.04.20 @ 14:55:02 Player: XorOwl Result: Destroyed by RP-PHJ(R) with Subdweller Laser Performance ------------- Evolutions (0) 0 Regions Visited (3) 600 Robots Destroyed (20) 100 Value Destroyed (417) 417 Prototype IDs (0) 0 Alien Tech Used (0) 0 Bonus (0) 0 TOTAL SCORE: 1117 Bonus ------- None Cogmind --------- Core Integrity 0/250 Matter 201/300 Energy 250/250 System Corruption 0% Temperature Cool (6) Movement Rolling (105) Location -10/Subcaves Parts ------- > --- POWER (1) -------- Ion Engine > --- PROPULSION (2) --- Compact Wheel Subdweller Monowheel > --- UTILITY (2) ------ Medium Storage Unit Signal Interpreter > --- WEAPON (2) ------- Small Laser Light Cannon > --- INVENTORY (10) --- Compact Wheel Compact Wheel Visual Processing Unit Experimental Sensor Array Improved Terrain Scanner Seismic Detector Transport Network Coupler Tractor Beam Subdweller Machine Gun Peak State ------------ > --- POWER ------------ Ion Engine > --- PROPULSION ------- Compact Wheel Compact Wheel > --- UTILITY ---------- Medium Storage Unit Improved Terrain Scanner > --- WEAPON ----------- Light Assault Rifle Light Cannon > --- INVENTORY -------- Ion Engine Signal Interpreter Improved Terrain Scanner Seismic Detector Transport Network Coupler Core Shielding Tractor Beam Small Laser [Rating: 10] Favorites ----------- Power Ion Engine Engine Ion Engine Propulsion Compact Wheel Wheel Compact Wheel Utility Medium Storage Unit Device Improved Terrain Scanner Storage Medium Storage Unit Processor Signal Interpreter Weapon Light Assault Rifle Energy Gun Small Laser Ballistic Gun Light Assault Rifle Ballistic Cannon Light Cannon Special Melee Weapon Datajack Build | -11 -10 -10 -10 ------- Run | Yrd Mat Min Sub Slots Evolved . | . . . . Power . | . . . . Propulsion . | . . . . Utility . | . . . . Weapon . | . . . . Parts Attached 26 | 10 9 3 4 Power 3 | 1 . 1 1 Engine 3 | 1 . 1 1 Core . | . . . . Reactor . | . . . . Propulsion 6 | 2 1 2 1 Treads . | . . . . Leg . | . . . . Wheel 6 | 2 1 2 1 Hover . | . . . . Flight . | . . . . Utility 6 | 4 2 . . Device 3 | 3 . . . Storage 2 | 1 1 . . Processor 1 | . 1 . . Hackware . | . . . . Protection . | . . . . Artifact . | . . . . Weapon 11 | 3 6 . 2 Energy Gun 6 | 2 3 . 1 Energy Cannon . | . . . . Ballistic Gun 1 | 1 . . . Ballistic Cannon 2 | . 1 . 1 Launcher . | . . . . Special Weapon . | . . . . Impact Weapon . | . . . . Slashing Weapon . | . . . . Piercing Weapon . | . . . . Special Melee Weapon 2 | . 2 . . Unidentified Prototypes . | . . . . Parts Lost 4 | . 1 . 3 Power 1 | . . . 1 Propulsion . | . . . . Utility . | . . . . Weapon 3 | . 1 . 2 Highest Loss Streak 3 | . 1 . 3 To Critical Strikes 1 | . . . 1 Average Slot Usage (%) 99 | . 99 100 100 Engine 14 | . 14 14 14 Wheel 28 | . 28 28 28 Device 4 | . 11 . . Storage 14 | . 14 14 14 Processor 9 | . 2 14 14 Energy Gun 3 | . 6 . 4 Ballistic Gun 12 | . 14 14 9 Ballistic Cannon 10 | . 5 14 14 Naked Turns . | . . . . Heaviest Build 20 | 14 20 19 19 Greatest Support 36 | 32 32 32 36 Greatest Overweight (x) 1 | 1 . . . Average Overweight (x) . | . . . . Largest Inventory Capacity 10 | 8 10 10 10 Average Capacity 9 | 7 9 10 10 Most Carried 10 | 2 10 10 10 Average Carried 7 | . 6 9 9 Final Capacity 10 | 8 10 10 10 Final Carried 10 | 2 10 10 9 Class Distribution -------------------- 92% | Mutant 7% | Scavenger-Mutant Dominant Class ---------------- Mutant | -10/Materials Mutant | -10/Mines Mutant | -10/Subcaves Resources | -11 -10 -10 -10 ----------- Run | Yrd Mat Min Sub Matter Collected 566 | 312 159 80 15 Remotely 21 | 21 . . . Salvage Created 598 | 106 251 136 105 Parts 48 | 10 27 3 8 Haulers Intercepted 1 | . 1 . . Recyclers Shooed 1 | 1 . . . Parts Field Recycled . | . . . . Retrieved Matter . | . . . . Parts Self-Destructed 2 | . . . 2 Prevented . | . . . . Kills | -11 -10 -10 -10 ------- Run | Yrd Mat Min Sub Combat Hostiles Destroyed 12 | . 7 2 3 Guns 6 | . 5 . 1 Cannons 6 | . 2 2 2 Classes Destroyed 8 | 2 5 . 1 Worker 1 | . 1 . . Tunneler 2 | 2 . . . Hauler 1 | . 1 . . Recycler 2 | 1 . 1 . Watcher 2 | . 2 . . Swarmer 4 | . 4 . . Grunt 5 | . 3 2 . Subdweller 3 | . . . 3 Best Kill Streak 4 | 3 4 2 1 Combat Bots Only 4 | . 4 2 1 Max Kills in Single Turn 2 | 1 2 1 1 Gunslinging 1 | . 1 . . Exploded . | . . . . Melee . | . . . . Uniques/NPCs Destroyed . | . . . . Combat | -11 -10 -10 -10 -------- Run | Yrd Mat Min Sub Hostile Shots Fired 107 | . 61 17 29 Missed 37 | . 20 3 14 Damage Taken 699 | . 306 136 257 Core 250 | . 117 47 86 Absorbed by Shields . | . . . . Ignored by Resistances 210 | . 98 41 71 Core Remaining (%) 100 | 100 . . . Volleys Fired 75 | 12 34 10 19 Largest 2 | 2 2 2 2 Hottest 75 | 60 60 55 75 Shots Fired 134 | 16 60 20 38 Gun 95 | 16 50 10 19 Cannon 39 | . 10 10 19 Launcher . | . . . . Special . | . . . . Kinetic 108 | 12 44 20 32 Thermal 22 | . 16 . 6 Explosive . | . . . . Electromagnetic 4 | 4 . . . Robot Hit Streak 31 | 7 22 13 31 Robot Miss Streak 2 | 2 2 1 1 Penetration Max . | . . . . Secondary Targets 2 | . 2 . . Max Gunslinging Chain 1 | . 1 . . Shots Hit Robots 119 | 11 54 19 35 Core Hits 43 | 5 20 7 11 Critical Kills . | . . . . Critical Parts Destroyed . | . . . . Critical Strikes 3 | . 1 1 1 Blast 3 | . 1 1 1 Melee Attacks 3 | . 3 . . Impact . | . . . . Slashing . | . . . . Piercing . | . . . . Sneak Attacks 2 | . 2 . . Combat Hostiles . | . . . . Follow-up Attacks . | . . . . Damage Inflicted 1379 | 110 557 251 461 Guns 721 | 110 381 72 158 Cannons 658 | . 176 179 303 Explosions . | . . . . Melee . | . . . . Ramming . | . . . . Kinetic 1147 | 71 420 251 405 Thermal 193 | . 137 . 56 Explosive . | . . . . Electromagnetic 39 | 39 . . . Impact . | . . . . Slashing . | . . . . Piercing . | . . . . Highest Corruption . | . . . . Average Corruption . | . . . . Corruption Purged . | . . . . Corruption Blocked . | . . . . Overload Shots . | . . . . Overflow Damage 13 | . . 13 . Projectiles 13 | . . 13 . Explosions . | . . . . Melee . | . . . . Knockbacks 16 | . 3 2 11 Impact . | . . . . Kinetic 16 | . 3 2 11 Secondary . | . . . . Self-Inflicted Damage . | . . . . Shots . | . . . . Rammed . | . . . . Targets Rammed . | . . . . Kicked . | . . . . Crushed . | . . . . Highest Temperature 111 | 20 111 96 . Average Temperature 38 | 15 35 51 . Received Heat Transfer 300 | . 135 99 66 Siege Activations . | . . . . Robots Corrupted . | . . . . Combat Hostiles . | . . . . Parts Fried . | . . . . Impact Corruptions . | . . . . Robots Melted . | . . . . Combat Hostiles . | . . . . Parts Melted . | . . . . Heat Transferred 450 | . 325 . 125 Parts Sabotaged . | . . . . Parts Stolen . | . . . . Parts Stripped . | . . . . Power Chain Reactions . | . . . . Alert | -11 -10 -10 -10 ------- Run | Yrd Mat Min Sub Peak Influence 213 | 15 213 84 . Initial 29 | . 8 29 . Average 55 | 7 67 52 . Maximum Alert Level 1 | . 1 . . Low Security (%) 94 | 100 88 100 . Level 1 5 | . 11 . . Level 2 . | . . . . Level 3 . | . . . . Level 4 . | . . . . Level 5 . | . . . . High Security . | . . . . Max Security . | . . . . Squads Dispatched 1 | . 1 . . Investigation 1 | . 1 . . Extermination . | . . . . Reinforcement . | . . . . Assault . | . . . . Garrison . | . . . . Intercept . | . . . . Searches Triggered . | . . . . Construction Impeded . | . . . . Haulers Reinforced . | . . . . Active Scanning Responses . | . . . . Cargo Convoy Interrupts . | . . . . Stealth | -11 -10 -10 -10 --------- Run | Yrd Mat Min Sub Distress Signals . | . . . . Communications Jammed . | . . . . Distress Signals . | . . . . Times Spotted 22 | . 14 2 6 Peak Tracking Total 8 | . 8 2 3 Tactical Retreats 3 | . 1 . 2 Traps | -11 -10 -10 -10 ------- Run | Yrd Mat Min Sub Traps Triggered . | . . . . Indirectly . | . . . . Trap Hack Attempts 41 | . 41 . . Triggered . | . . . . Disarmed 2 | . 2 . . Reprogrammed 4 | . 4 . . Reused 3 | . 3 . . Traps Extracted . | . . . . Installed . | . . . . Triggered 3 | . 3 . . Machines | -11 -10 -10 -10 ---------- Run | Yrd Mat Min Sub Machines Disabled . | . . . . Max in Single Turn . | . . . . Machines Repaired . | . . . . Machines Dismantled . | . . . . Machines Sabotaged . | . . . . Overloaded Fab Kills . | . . . . Hacking | -11 -10 -10 -10 --------- Run | Yrd Mat Min Sub Machines Accessed 3 | . 3 . . Terminals 2 | . 2 . . Fabricators . | . . . . Repair Stations . | . . . . Recycling Units 1 | . 1 . . Scanalyzers . | . . . . Garrison Access . | . . . . Total Hacks 7 | . 7 . . Successful 7 | . 7 . . Failed . | . . . . Catastrophic . | . . . . Database Lockouts . | . . . . Manual 3 | . 3 . . Terminals 5 | . 5 . . Fabricators . | . . . . Repair Stations . | . . . . Recycling Units 2 | . 2 . . Scanalyzers . | . . . . Garrison Access . | . . . . Terminal Hacks 3 | . 3 . . Locate Traps 2 | . 2 . . Zone Layout 1 | . 1 . . Fabricator Hacks . | . . . . Repair Station Hacks . | . . . . Recycling Unit Hacks 1 | . 1 . . Report Inventory 1 | . 1 . . Scanalyzer . | . . . . Garrison Access Hacks . | . . . . Unauthorized Hacks 3 | . 3 . . Terminals 2 | . 2 . . Botnet 2 | . 2 . . Fabricators . | . . . . Repair Stations . | . . . . Recycling Units 1 | . 1 . . Reject 1 | . 1 . . Scanalyzers . | . . . . Garrison Access . | . . . . Data Cores Recovered . | . . . . Used . | . . . . Hacking Detections 2 | . 2 . . Full Trace Events 1 | . 1 . . Feedback Events . | . . . . Feedback Blocked . | . . . . Robot Schematics Acquired . | . . . . Robots Built . | . . . . Authchips . | . . . . Time . | . . . . Total Robot Build Rating . | . . . . Part Schematics Acquired . | . . . . Parts Built . | . . . . Authchips . | . . . . Time . | . . . . Total Part Build Rating . | . . . . Parts Repaired . | . . . . Time . | . . . . Parts Recycled . | . . . . Recycled Matter . | . . . . Retrieved Matter . | . . . . Retrieved Components . | . . . . Parts Scanalyzed . | . . . . Part Schematics Acquired . | . . . . Parts Damaged . | . . . . Bothacking | -11 -10 -10 -10 ------------ Run | Yrd Mat Min Sub Used RIF Installer . | . . . . Robots Hacked 2 | . 2 . . Non-combat 2 | . 2 . . Combat . | . . . . Robot Hacks Applied 2 | . 2 . . parse_system 1 | . 1 . . no_distress 1 | . 1 . . Relay Couplers Released . | . . . . Fabnet Peak Effective % . | . . . . Robots Rewired . | . . . . Allies Hacked . | . . . . Hacks Repelled . | . . . . Allies | -11 -10 -10 -10 -------- Run | Yrd Mat Min Sub Total Allies . | . . . . Largest Group . | . . . . Highest-Rated Group . | . . . . Highest-Rated Ally . | . . . . Total Orders . | . . . . Ally Attacks . | . . . . Total Damage . | . . . . Kills . | . . . . Allies Corrupted . | . . . . Allies Melted . | . . . . Intel | -11 -10 -10 -10 ------- Run | Yrd Mat Min Sub Robot Analysis Total . | . . . . Derelict Logs Recovered 2 | . . 1 1 Drone Launches . | . . . . Drone Recoveries . | . . . . Exploration | -11 -10 -10 -10 ------------- Run | Yrd Mat Min Sub Turns Passed 1731 | 113 631 580 407 Spaces Moved 1280 | 62 428 496 294 Core 4 | 4 . . . Treads . | . . . . Legs . | . . . . Wheels 1276 | 58 428 496 294 Hover . | . . . . Flight . | . . . . Fastest Speed 50 | 50 90 90 100 Average Speed 99 | 98 98 98 101 Slowest Speed 105 | 100 100 100 105 Overloaded Moves . | . . . . Propulsion Burnouts . | . . . . Robots Hopped . | . . . . Cave-ins Triggered . | . . . . Exploration Rate (%) 44 | 4 61 95 18 Regions Visited 3 Branch Regions 2 Pre-discovered Areas . | . . . . Known Exits Taken 2 | . 1 1 . Unknown Exits Taken 1 | 1 . . . Scrap Searched 1 | . . 1 . Spaces Dug . | . . . . Terrain Destroyed . | . . . . Melee . | . . . . Projectile . | . . . . AOE . | . . . . Terrain Rammed . | . . . . Walls Destroyed . | . . . . Machines Disabled . | . . . . Actions | -11 -10 -10 -10 --------- Run | Yrd Mat Min Sub Total 1614 | 96 580 571 367 Wait 171 | 11 56 56 48 Move 1277 | 61 427 495 294 Hop . | . . . . Pick Up 11 | . 7 2 2 Fast Attach 10 | 8 2 . . Attach 5 | 1 1 . 3 Detach 3 | 2 1 . . Swap 11 | 1 6 3 1 Drop 7 | . 2 5 . Fire 75 | 12 34 10 19 Melee 3 | . 3 . . Ram . | . . . . Kick . | . . . . Crush . | . . . . Escape Stasis . | . . . . Rewire . | . . . . Trap 41 | . 41 . . Miscellaneous . | . . . . Route ------- -11/Scrapyard -10/Materials (discovered 2 exits: *Mat / *Min) -10/Mines (discovered 3 exits: *Mat x2 / *Sub) -10/Subcaves (discovered 1 exit: Mat) History --------- Turn | Location | Event 26 | -11/Scrapyard | Discovered new exit (range 12) 114 | -11/Scrapyard | Entered Materials 165 | -10/Materials | Discovered new exit (range 16) 212 | -10/Materials | Discovered new exit (range 4) 304 | -10/Materials | Build established: Mutant 659 | -10/Materials | Identified exit to Materials 744 | -10/Materials | Identified exit to Mines 745 | -10/Materials | Entered Mines 778 | -10/Mines | Core integrity fell below 50% 779 | -10/Mines | Met a Derelict bent on vengeance 923 | -10/Mines | Found a hidden stash of uninstalled traps 967 | -10/Mines | Discovered exit to Materials (range 12) 1020 | -10/Mines | Found a damaged Exp. Sensor Array with a note attached 1023 | -10/Mines | Found Prototype Device 1092 | -10/Mines | Discovered exit to Materials (range 16) 1311 | -10/Mines | Discovered new exit (range 15) 1324 | -10/Mines | Identified exit to Subcaves 1325 | -10/Mines | Entered Subcaves 1334 | -10/Subcaves | Identified exit to Materials 1369 | -10/Subcaves | Core integrity fell below 20% 1644 | -10/Subcaves | Lost 3 parts (1p2w) 1732 | -10/Subcaves | Destroyed by RP-PHJ(R) with Subdweller Laser Last Messages --------------- Subatomizers dissect the Disposable Heat Sink. 1S-YKN(O) collects matter. 1S-YKN(O) puts together Scrap Shield. Subatomizers dissect the Disposable Heat Sink. IK-UJL(R) knocked back. BX-I4N(R) Sub. Machine Gun blasted off. BX-I4N(R) knocked back. IK-UJL(R) knocked back. BX-I4N(R) knocked back. Lgt. Cannon destroyed. IK-UJL(R) knocked back. Critical hit (Destroy). Lgt. Assault Rifle destroyed. Ion Engine destroyed. IK-UJL(R) destroyed. Acquired Sub. Machine Gun. Acquired Sub. Monowheel. 0V-9LP(R) destroyed. RP-PHJ(R) knocked back. Map ----- +----------------------------------------------------+ | ?????????????????????????????????????????????????? | | ?????????????????????????????????????????????????? | | ?????????????????????????????????????????????????? | | ?????????????????????????????????????????????????? | | ?????????????????????????????????????????????????? | | ?????????????????????????????????????????????????? | | ?????????????????????????????????????????????????? | | ?????????????????????????????????????????????????? | | ?????????????????????????????????????????????????? | | ?????????????????????????????????????????????????? | | ?????????????????????????????????????????????????? | | ???????????????????????#####?????????????????????? | | ????????????????######## #?????????????????????? | | ???????????????## #?????????????????????? | | ??????????????## #?????????????????????? | | ??????????????# #### ##????????????????????? | | ?????????????## ##??## ###??????????????????? | | ????????????## ##???## ""##"????????????????? | | ????????????# ##?#### """""#???????????????? | | ???????????## #??# R """""#???????????????? | | ??????????## #??## % #???????????????? | | ??????????# #???# #???????????????? | | ??????????## ##??##% ### #???????????????? | | ???????????## ##??# #??# "#????????????? | | ????????????# ##?# #### " "??????????? | | ???????????## #?# @%! """???????????? | | ??????????## #?# *[% #?????????? | | ??????????# #?# #?????????? | | ??????????## ## #?## ## " ?????????? | | ???????????##?## ##### #? ##"??????????? | | ???????????????## ### ##??#?????????????? | | ????????????????## #? ##?????????????????? | | ????????????###### ##? #??????????????????? | | ??????????### ##?? ??????????????????? | | ??????????# #???# #?????????????????? | | ?????????# ## ##???? ##?????????????????? | | ?????????# ### ##????? ##??????????????????? | | ?????????######## #?????? #???????????????????? | | ?????????????## ##?????? ???????????????????? | | ?????????????# ##??????? #???????????????????? | | ??????????# ## #????????????????????????????? | | ??????????## ## ##????????????????????????????? | | ?????????#####?## ####??????????????????????????? | | ?????????# & ## #???# #???????????????????? | | ?????????#" # ## #?????????????????????? | | ?????????# " #????????????????????? | | ?????????# & " ## #????????????????????? | | ?????????# " ##? ### #????????????????????? | | ?????????###### #?? ##????????????????????????? | | ??????????????## ### #?????????????????????????? | +----------------------------------------------------+ Best States ------------- Heat Dissipation 25 Energy Generation 10 Energy Capacity 250 Matter Stores 300 Matter Capacity 300 Sight Range 16 Terrain Scan Range 16 Terrain Scan Density 10 Resistance: KI 20 Resistance: TH 20 Resistance: EX 20 Resistance: EM 20 Resistance: I 20 Resistance: S 20 Resistance: P 20 Evasion (%) 42 Offensive Hacking 10 Item Schematics ----------------- None Robot Schematics ------------------ None Fabricated ------------ Nothing Alien Tech Used ----------------- None Achievements -------------- None Challenges ------------ None Game ------ Seed OmegaAnalysisLegs Manual? 0 Play Time 00:20:37 Cumulative 75.6 hours Start 2024.04.20 @ 14:32:15 End 2024.04.20 @ 14:55:02 Sessions 1 Manual Loads 0 Difficulty Adventurer Special Mode None Game No. 30 Rogue 0 Adventurer 30 Explorer 0 Win Type - Total 1 Types 1/0/0/0/0/0/0/0/0 Lore% 30 Gallery% 43 Achievement% 39 Wizard Run 0 Options --------- Layout 1 ASCII 0 Keyboard 0 Movement Mouse Keybinds 0 Fullscreen 2 Font 24/Smallcaps Map View 50x35 Zoom Use 0% Tactical HUD 0 Map Filters NONE Filters NONE Steam 1 RUN: 40ae0ab9-b3cf-4e18-af25-fcfa750fc445